Cogmind - Beta 12 @@@ ROGUE MODE // 2023.04.29 @ 17:14:03 Player: Mr Goldstein Result: Self-destructed Performance ------------- Evolutions (4) 2000 Regions Visited (6) 1200 Robots Destroyed (2) 10 Value Destroyed (74) 74 Prototype IDs (0) 0 Alien Tech Used (0) 0 Bonus (1825) 1825 TOTAL SCORE: 5109 Bonus ------- Pacifist 1325 Entered DSFs 500 Cogmind --------- Core Integrity 717/850 Matter 75/300 Energy 100/100 System Corruption 2% Temperature Cool (0) Movement Core (50) Location -6/Factory Parts ------- > --- POWER (1) -------- (None) > --- PROPULSION (7) --- Armored Treads Armored Treads > --- UTILITY (5) ------ Enhanced Optical Array > --- WEAPON (2) ------- Heavy Flail > --- INVENTORY (5) ---- Nuclear Core Nuclear Core Cesium-ion Thruster Advanced Weight Redist. System Peak State ------------ > --- POWER ------------ (None) > --- PROPULSION ------- Armored Treads Armored Treads Armored Treads Advanced Treads Advanced Treads > --- UTILITY ---------- Enhanced Optical Array > --- WEAPON ----------- (None) > --- INVENTORY -------- Nuclear Core Nuclear Core Cesium-ion Thruster Advanced Weight Redist. System Heavy Flail [Rating: 21] Favorites ----------- Power None Propulsion Armored Treads Treads Armored Treads Utility Enhanced Optical Array Processor Enhanced Optical Array Weapon Heavy Flail Impact Weapon Heavy Flail Build | -11 -10 -9 -8 -7 -7 -6 ------- Run | Jun Mat Mat Mat Fac DSF Fac Slots Evolved 8 | . . 2 2 2 . 2 Power . | . . . . . . . Propulsion 5 | . . 2 1 1 . 1 Utility 3 | . . . 1 1 . 1 Weapon . | . . . . . . . Parts Attached 11 | . . . 2 . 7 2 Power . | . . . . . . . Engine . | . . . . . . . Core . | . . . . . . . Reactor . | . . . . . . . Propulsion 7 | . . . . . 7 . Treads 7 | . . . . . 7 . Leg . | . . . . . . . Wheel . | . . . . . . . Hover . | . . . . . . . Flight . | . . . . . . . Utility 2 | . . . 1 . . 1 Device . | . . . . . . . Storage . | . . . . . . . Processor 2 | . . . 1 . . 1 Hackware . | . . . . . . . Protection . | . . . . . . . Artifact . | . . . . . . . Weapon 2 | . . . 1 . . 1 Energy Gun . | . . . . . . . Energy Cannon . | . . . . . . . Ballistic Gun . | . . . . . . . Ballistic Cannon . | . . . . . . . Launcher . | . . . . . . . Special Weapon . | . . . . . . . Impact Weapon 2 | . . . 1 . . 1 Slashing Weapon . | . . . . . . . Piercing Weapon . | . . . . . . . Special Melee Weapon . | . . . . . . . Unidentified Prototypes . | . . . . . . . Parts Lost 5 | . . . . . 2 3 Power . | . . . . . . . Propulsion 3 | . . . . . . 3 Utility 1 | . . . . . 1 . Weapon 1 | . . . . . 1 . Highest Loss Streak 3 | . . . . . 2 3 To Critical Strikes 1 | . . . . . . 1 Average Slot Usage (%) 17 | . . . 13 . 21 34 Treads 11 | . . . . . 16 27 Processor 3 | . . . 7 . 2 5 Impact Weapon 1 | . . . 6 . 2 . Naked Turns 118 | . 34 62 13 . 9 . Heaviest Build 3 | . . . 3 3 3 3 Greatest Support 44 | 3 3 3 3 3 44 3 Greatest Overweight (x) . | . . . . . . . Average Overweight (x) . | . . . . . . . Largest Inventory Capacity 5 | 5 5 5 5 5 5 5 Average Capacity 5 | 5 5 5 5 5 5 5 Most Carried 5 | . . 4 5 5 5 5 Average Carried 3 | . . 1 4 5 5 4 Final Capacity 5 | 5 5 5 5 5 5 5 Final Carried 5 | . . 4 5 5 5 4 Class Distribution -------------------- 100% | Mutant Dominant Class ---------------- Mutant | -10/Materials Mutant | -9/Materials Mutant | -8/Materials Mutant | -7/Factory Mutant | -7/DSF Mutant | -6/Factory Resources | -11 -10 -9 -8 -7 -7 -6 ----------- Run | Jun Mat Mat Mat Fac DSF Fac Matter Collected 53 | 53 . . . . . . Remotely . | . . . . . . . Salvage Created 49 | . . . . . . 49 Parts 1 | . . . . . . 1 Haulers Intercepted . | . . . . . . . Recyclers Shooed . | . . . . . . . Parts Field Recycled . | . . . . . . . Retrieved Matter . | . . . . . . . Parts Self-Destructed . | . . . . . . . Prevented . | . . . . . . . Kills | -11 -10 -9 -8 -7 -7 -6 ------- Run | Jun Mat Mat Mat Fac DSF Fac Combat Hostiles Destroyed 2 | . . . . . . 2 Melee 1 | . . . . . . 1 AOE 1 | . . . . . . 1 Classes Destroyed 1 | . . . . . . 1 Swarmer 2 | . . . . . . 2 Best Kill Streak 2 | . . . . . . 2 Combat Bots Only 2 | . . . . . . 2 Max Kills in Single Turn 1 | . . . . . . 1 Gunslinging . | . . . . . . . Exploded 1 | . . . . . . 1 Melee 1 | . . . . . . 1 Uniques/NPCs Destroyed . | . . . . . . . Combat | -11 -10 -9 -8 -7 -7 -6 -------- Run | Jun Mat Mat Mat Fac DSF Fac Damage Taken 1911 | . 21 179 267 . 399 1045 Core 733 | . 21 179 201 . 199 133 Absorbed by Shields . | . . . . . . . Core Remaining (%) 76 | 100 91 55 63 . 71 . Volleys Fired . | . . . . . . . Largest . | . . . . . . . Hottest . | . . . . . . . Shots Fired . | . . . . . . . Gun . | . . . . . . . Cannon . | . . . . . . . Launcher . | . . . . . . . Special . | . . . . . . . Kinetic . | . . . . . . . Thermal . | . . . . . . . Explosive . | . . . . . . . Electromagnetic . | . . . . . . . Robot Hit Streak . | . . . . . . . Robot Miss Streak . | . . . . . . . Penetration Max . | . . . . . . . Secondary Targets . | . . . . . . . Shots Hit Robots 2 | . . . . . . 2 Core Hits 2 | . . . . . . 2 Critical Kills . | . . . . . . . Critical Parts Destroyed 1 | . . . . . . 1 Critical Strikes 1 | . . . . . . 1 Smash 1 | . . . . . . 1 Melee Attacks 3 | . . . 1 . . 2 Impact 3 | . . . 1 . . 2 Slashing . | . . . . . . . Piercing . | . . . . . . . Sneak Attacks . | . . . . . . . Combat Hostiles . | . . . . . . . Follow-up Attacks . | . . . . . . . Damage Inflicted 167 | . . . 10 . . 157 Guns . | . . . . . . . Cannons . | . . . . . . . Explosions 50 | . . . . . . 50 Melee 107 | . . . . . . 107 Ramming 10 | . . . 10 . . . Kinetic . | . . . . . . . Thermal . | . . . . . . . Explosive . | . . . . . . . Electromagnetic 50 | . . . . . . 50 Impact 107 | . . . . . . 107 Slashing . | . . . . . . . Piercing . | . . . . . . . Highest Corruption 2 | . . . 1 . . 2 Average Corruption 1 | . . . 1 . . 2 Corruption Purged . | . . . . . . . Corruption Blocked . | . . . . . . . Overload Shots . | . . . . . . . Overflow Damage 90 | . . . . . . 90 Projectiles . | . . . . . . . Explosions 8 | . . . . . . 8 Melee 82 | . . . . . . 82 Knockbacks 1 | . . . . . . 1 Impact 1 | . . . . . . 1 Kinetic . | . . . . . . . Secondary . | . . . . . . . Self-Inflicted Damage 82 | . . . 4 . . 78 Shots 2 | . . . . . . 2 Rammed 2 | . . . 2 . . . Targets Rammed 2 | . . . 2 . . . Kicked . | . . . . . . . Crushed . | . . . . . . . Highest Temperature 59 | . . . . . . 59 Average Temperature 40 | . . . . . . 40 Received Heat Transfer 447 | . 12 57 126 . . 252 Siege Activations . | . . . . . . . Robots Corrupted . | . . . . . . . Combat Hostiles . | . . . . . . . Parts Fried 2 | . . . . . . 2 Impact Corruptions 3 | . . . . . . 3 Robots Melted . | . . . . . . . Combat Hostiles . | . . . . . . . Parts Melted . | . . . . . . . Heat Transferred . | . . . . . . . Parts Sabotaged . | . . . . . . . Parts Stolen . | . . . . . . . Parts Stripped . | . . . . . . . Power Chain Reactions . | . . . . . . . Missiles Intercepted . | . . . . . . . Alert | -11 -10 -9 -8 -7 -7 -6 ------- Run | Jun Mat Mat Mat Fac DSF Fac Peak Influence 116 | . . 60 100 45 41 116 Initial 45 | . . . 25 45 31 21 Average 29 | . . 23 53 45 25 36 Maximum Alert Level . | . . . . . . . Low Security (%) 100 | 100 100 100 100 100 100 100 Level 1 . | . . . . . . . Level 2 . | . . . . . . . Level 3 . | . . . . . . . Level 4 . | . . . . . . . Level 5 . | . . . . . . . High Security . | . . . . . . . Max Security . | . . . . . . . Squads Dispatched 5 | . . 1 1 . 1 2 Investigation . | . . . . . . . Extermination . | . . . . . . . Reinforcement 5 | . . 1 1 . 1 2 Assault . | . . . . . . . Garrison . | . . . . . . . Intercept . | . . . . . . . Searches Triggered . | . . . . . . . Construction Impeded . | . . . . . . . Haulers Reinforced . | . . . . . . . Active Scanning Responses . | . . . . . . . Cargo Convoy Interrupts . | . . . . . . . Stealth | -11 -10 -9 -8 -7 -7 -6 --------- Run | Jun Mat Mat Mat Fac DSF Fac Distress Signals 4 | . 1 1 2 . . . Communications Jammed . | . . . . . . . Distress Signals . | . . . . . . . Times Spotted 44 | . 2 5 13 . 4 20 Peak Tracking Total 12 | . 2 8 12 . 3 11 Tactical Retreats 4 | . . 1 . . 1 2 Traps | -11 -10 -9 -8 -7 -7 -6 ------- Run | Jun Mat Mat Mat Fac DSF Fac Traps Triggered 3 | . 1 . . . 1 1 Indirectly . | . . . . . . . Trap Hack Attempts . | . . . . . . . Triggered . | . . . . . . . Disarmed . | . . . . . . . Reprogrammed . | . . . . . . . Reused . | . . . . . . . Traps Extracted . | . . . . . . . Installed . | . . . . . . . Triggered . | . . . . . . . Machines | -11 -10 -9 -8 -7 -7 -6 ---------- Run | Jun Mat Mat Mat Fac DSF Fac Machines Disabled 2 | . . . . . . 2 Max in Single Turn 2 | . . . . . . 2 Machines Repaired . | . . . . . . . Machines Sabotaged . | . . . . . . . Overloaded Fab Kills . | . . . . . . . Hacking | -11 -10 -9 -8 -7 -7 -6 --------- Run | Jun Mat Mat Mat Fac DSF Fac Machines Accessed 1 | . . . . 1 . . Terminals 1 | . . . . 1 . . Fabricators . | . . . . . . . Repair Stations . | . . . . . . . Recycling Units . | . . . . . . . Scanalyzers . | . . . . . . . Garrison Access . | . . . . . . . Total Hacks 1 | . . . . 1 . . Successful 1 | . . . . 1 . . Failed . | . . . . . . . Catastrophic . | . . . . . . . Database Lockouts . | . . . . . . . Manual . | . . . . . . . Terminals 1 | . . . . 1 . . Fabricators . | . . . . . . . Repair Stations . | . . . . . . . Recycling Units . | . . . . . . . Scanalyzers . | . . . . . . . Garrison Access . | . . . . . . . Terminal Hacks 1 | . . . . 1 . . Open DSF 1 | . . . . 1 . . Fabricator Hacks . | . . . . . . . Repair Station Hacks . | . . . . . . . Recycling Unit Hacks . | . . . . . . . Scanalyzer . | . . . . . . . Garrison Access Hacks . | . . . . . . . Unauthorized Hacks . | . . . . . . . Terminals . | . . . . . . . Fabricators . | . . . . . . . Repair Stations . | . . . . . . . Recycling Units . | . . . . . . . Scanalyzers . | . . . . . . . Garrison Access . | . . . . . . . Data Cores Recovered . | . . . . . . . Used . | . . . . . . . Hacking Detections . | . . . . . . . Full Trace Events . | . . . . . . . Feedback Events . | . . . . . . . Feedback Blocked . | . . . . . . . Robot Schematics Acquired . | . . . . . . . Robots Built . | . . . . . . . Authchips . | . . . . . . . Time . | . . . . . . . Total Robot Build Rating . | . . . . . . . Part Schematics Acquired . | . . . . . . . Parts Built . | . . . . . . . Authchips . | . . . . . . . Time . | . . . . . . . Total Part Build Rating . | . . . . . . . Parts Repaired . | . . . . . . . Time . | . . . . . . . Parts Recycled . | . . . . . . . Recycled Matter . | . . . . . . . Retrieved Matter . | . . . . . . . Retrieved Components . | . . . . . . . Parts Scanalyzed . | . . . . . . . Part Schematics Acquired . | . . . . . . . Parts Damaged . | . . . . . . . Bothacking | -11 -10 -9 -8 -7 -7 -6 ------------ Run | Jun Mat Mat Mat Fac DSF Fac Used RIF Installer . | . . . . . . . Robots Hacked . | . . . . . . . Non-combat . | . . . . . . . Combat . | . . . . . . . Robot Hacks Applied . | . . . . . . . Relay Couplers Released . | . . . . . . . Fabnet Peak Effective % . | . . . . . . . Robots Rewired 1 | . . . . . . 1 Allies Hacked . | . . . . . . . Hacks Repelled . | . . . . . . . Allies | -11 -10 -9 -8 -7 -7 -6 -------- Run | Jun Mat Mat Mat Fac DSF Fac Total Allies 1 | . . . . . . 1 Largest Group 1 | . . . . . . 1 Highest-Rated Group 31 | . . . . . . 31 Highest-Rated Ally 31 | . . . . . . 31 Total Orders . | . . . . . . . Ally Attacks 2 | . . . . . . 2 Total Damage 62 | . . . . . . 62 Kills . | . . . . . . . Allies Corrupted . | . . . . . . . Allies Melted . | . . . . . . . Intel | -11 -10 -9 -8 -7 -7 -6 ------- Run | Jun Mat Mat Mat Fac DSF Fac Robot Analysis Total . | . . . . . . . Derelict Logs Recovered . | . . . . . . . Drone Launches . | . . . . . . . Drone Recoveries . | . . . . . . . Exploration | -11 -10 -9 -8 -7 -7 -6 ------------- Run | Jun Mat Mat Mat Fac DSF Fac Turns Passed 314 | 9 34 62 56 3 63 87 Spaces Moved 538 | 18 67 116 92 5 93 147 Core 532 | 18 67 116 92 5 87 147 Treads 6 | . . . . . 6 . Legs . | . . . . . . . Wheels . | . . . . . . . Hover . | . . . . . . . Flight . | . . . . . . . Fastest Speed 50 | 50 50 50 50 50 50 50 Average Speed 51 | 50 50 50 50 50 56 50 Slowest Speed 170 | 50 50 50 50 50 170 50 Overloaded Moves . | . . . . . . . Propulsion Burnouts . | . . . . . . . Robots Hopped . | . . . . . . . Cave-ins Triggered . | . . . . . . . Exploration Rate (%) 26 | 3 23 20 18 . 91 6 Regions Visited 6 Branch Regions . Pre-discovered Areas . | . . . . . . . Known Exits Taken 1 | . . . . 1 . . Unknown Exits Taken 4 | 1 1 1 1 . . . Scrap Searched . | . . . . . . . Spaces Dug . | . . . . . . . Terrain Destroyed . | . . . . . . . Melee . | . . . . . . . Projectile . | . . . . . . . AOE . | . . . . . . . Terrain Rammed . | . . . . . . . Walls Destroyed . | . . . . . . . Machines Disabled . | . . . . . . . Actions | -11 -10 -9 -8 -7 -7 -6 --------- Run | Jun Mat Mat Mat Fac DSF Fac Total 561 | 17 66 119 99 4 99 157 Wait 1 | . . . . . . 1 Move 533 | 17 66 115 92 4 92 147 Hop . | . . . . . . . Pick Up 6 | . . 4 2 . . . Fast Attach 10 | . . . 2 . 7 1 Attach 1 | . . . . . . 1 Detach . | . . . . . . . Swap . | . . . . . . . Drop 1 | . . . 1 . . . Fire . | . . . . . . . Melee 3 | . . . 1 . . 2 Ram 1 | . . . 1 . . . Kick . | . . . . . . . Crush . | . . . . . . . Escape Stasis . | . . . . . . . Rewire 5 | . . . . . . 5 Trap . | . . . . . . . Miscellaneous . | . . . . . . . Route ------- -11/Junkyard -10/Materials -9/Materials -8/Materials -7/Factory -7/DSF -6/Factory History --------- Turn | Location | Event 3 | -11/Junkyard | Discovered new exit (range 15) 10 | -11/Junkyard | Entered Materials 40 | -10/Materials | Discovered new exit (range 9) 44 | -10/Materials | Entered another Materials area 44 | -9/Materials | Evolved 2 slots: Propulsion x2 99 | -9/Materials | Discovered new exit (range 15) 106 | -9/Materials | Entered another Materials area 106 | -8/Materials | Evolved 2 slots: Propulsion x1, Utility x1 160 | -8/Materials | Discovered new exit (range 5) 162 | -8/Materials | Entered Factory 162 | -7/Factory | Evolved 2 slots: Propulsion x1, Utility x1 165 | -7/Factory | Identified exit to DSF 165 | -7/Factory | Entered DSF 184 | -7/DSF | Discovered new exit (range 15) 190 | -7/DSF | Additional patrols routed to DSF 228 | -7/DSF | Entered Factory 228 | -6/Factory | Evolved 2 slots: Propulsion x1, Utility x1 315 | -6/Factory | Self-destructed Last Messages --------------- 00273_ U-05 Engineer lays Concrete. 00294_ Adv. Treads destroyed. 00294_ U-05 Engineer lays Concrete. 00301_ Critical hit (Burn: +37). 00311_ Destroyed VTOL Module. 00311_ S-27 Virus system corrupted by crushing effect. 00311_ S-27 Virus destroyed. 00313_ S-27 Virus suffers critical hit (Smash). 00313_ Destroyed VTOL Module. 00313_ Destroyed Lgt. Nuclear Core. 00313_ S-27 Virus system corrupted by crushing effect. 00313_ Neutrino Reactor explodes. [Achievement: Batter Up] 00313_ Autogun fried. 00313_ VTOL Module fried. 00313_ S-27 Virus destroyed. 00313_ Neutrino Reactor explodes. 00313_ Door malfunctions. 00313_ Arm. Treads destroyed. 00313_ Destroyed Arm. Treads. Map ----- +----------------------------------------------------+ | | | | | | | | | | | | | | | | | | | ????????????????????????????????????????????????? | | ????????????????????????????????????????????????? | | ????????????????????????????????????????????????? | | ????????????????????????????????????????????????? | | ????????????????????????????????????????????????? | | ????????????????????????????????????????????????? | | ????????????????????????????????????????????????? | | ????????????????????????????????????????????????? | | ????????????????????????????????????????????????? | | ????????????????????????????????????????????????? | | ????????????????????????????????????????????????? | | ????????????????????????????????????????????????? | | ??????????????????##########????????????????????? | | ??????????????????# #????????????????????? | | ??????????????????# #????????????????????? | | ??????????????????# #????????????????????? | | ??????????????????# @ #????????????????????? | | ??????????????????# [% #????????????????????? | | ??????????????????# % #????????????????????? | | ??????????????????# #????????????????????? | | ??????????????????# #????????????????????? | | ??????????????????# #????????????????????? | | #######################/###########?????????????? | | """"""""""" g #?????????????? | | "" "" g #?????????????? | | g #?????????????? | | #?????????????? | | #?????????????? | | g#########+#####????????????? | | #???# #????????????? | | #???# " #????????????? | | #???# "" #????????????? | | #???# G """ #????????????? | | ;#/##### "" """ #????????????? | | ; ## " """ #????????????? | | ]]]## #????????????? | | "= ]]]## !#????????????? | | " ]]]############????????????? | | ################?????????????? | | #?????????????? | | #?????????????? | +----------------------------------------------------+ Best States ------------- Heat Dissipation 37 Energy Generation 5 Energy Capacity 100 Matter Stores 153 Matter Capacity 300 Sight Range 22 Terrain Scan Density 10 Evasion (%) 50 Recoil Reduction 3 Item Schematics ----------------- None Robot Schematics ------------------ None Fabricated ------------ Nothing Alien Tech Used ----------------- None Achievements -------------- Batter Up Challenges ------------ None Game ------ Seed TractorNetworkFlail Manual? 0 Play Time 00:04:58 Cumulative 157.2 hours Start 2023.04.29 @ 17:10:18 End 2023.04.29 @ 17:14:03 Sessions 1 Manual Loads 0 Difficulty Rogue Special Mode None Game No. 476 Rogue 476 Adventurer 0 Explorer 0 Win Type - Total 7 Types 6/0/0/1/0/0/0/0/0 Lore% 66 Gallery% 72 Achievement% 62 Wizard Run 0 Options --------- ASCII 0 Keyboard 0 Movement Numpad Keybinds 0 Fullscreen 1 Font 16/SmallcapsGlow Map View 75x55 Tactical HUD 1 Map Filters NONE Filters NONE Steam 1 RUN: ed33a2a0-632b-4a4e-910c-492b4ed3b22b